Cogmind - Beta 17 @@@ ROGUE MODE // 2026.08.01 @ 22:18:08 Player: gorb Result: Destroyed by S-10 Pest with Light Assault Rifle Performance ------------- Evolutions (2) 1000 Regions Visited (4) 800 Robots Destroyed (20) 100 Value Destroyed (379) 379 Prototype IDs (0) 0 Alien Tech Used (0) 0 Bonus (14) 14 TOTAL SCORE: 2293 Bonus ------- High Alert Combat Kills 14 Cogmind --------- Core Integrity 0/550 Matter 227/300 Energy 100/100 System Corruption 0% Temperature Cool (0) Movement Core (50) Location -8/Materials Parts ------- > --- POWER (2) -------- (None) > --- PROPULSION (5) --- (None) > --- UTILITY (2) ------ (None) > --- WEAPON (2) ------- (None) > --- INVENTORY (5) ---- Flight Unit Heat Sink Improved Targeting Computer Light Assault Rifle Assault Cannon Peak State ------------ > --- POWER ------------ Ion Engine Light Ion Engine > --- PROPULSION ------- Flight Unit Flight Unit Flight Unit Flight Unit Flight Unit > --- UTILITY ---------- Small Storage Unit Hardened Medium Armor Plating > --- WEAPON ----------- Light Assault Rifle Flail > --- INVENTORY -------- Flight Unit Heat Sink Light Assault Rifle Assault Cannon [Rating: 14] Favorites ----------- Power Ion Engine Engine Ion Engine Propulsion Flight Unit Wheel Compact Wheel Flight Unit Flight Unit Utility Small Storage Unit Storage Small Storage Unit Protection Hardened Medium Armor Plating Weapon Light Assault Rifle Ballistic Gun Light Assault Rifle Impact Weapon Flail Build | -11 -10 -10 -9 -8 ------- Run | Yrd Mat Min Mat Mat Slots Evolved 4 | . . . 2 2 Power 1 | . . . . 1 Propulsion 3 | . . . 2 1 Utility . | . . . . . Weapon . | . . . . . Parts Attached 25 | 5 6 . 12 2 Power 6 | 1 1 . 4 . Engine 6 | 1 1 . 4 . Core . | . . . . . Reactor . | . . . . . Propulsion 12 | 2 2 . 7 1 Treads . | . . . . . Leg . | . . . . . Wheel 2 | 2 . . . . Hover . | . . . . . Flight 10 | . 2 . 7 1 Utility 2 | 1 . . . 1 Device . | . . . . . Storage 1 | 1 . . . . Processor . | . . . . . Hackware . | . . . . . Protection 1 | . . . . 1 Artifact . | . . . . . Weapon 5 | 1 3 . 1 . Energy Gun . | . . . . . Energy Cannon . | . . . . . Ballistic Gun 4 | 1 3 . . . Ballistic Cannon . | . . . . . Launcher . | . . . . . Special Weapon . | . . . . . Impact Weapon 1 | . . . 1 . Slashing Weapon . | . . . . . Piercing Weapon . | . . . . . Special Melee Weapon . | . . . . . Unidentified Prototypes . | . . . . . Parts Lost 18 | . 1 . 6 11 Power 5 | . . . 3 2 Propulsion 9 | . 1 . 3 5 Utility 2 | . . . . 2 Weapon 2 | . . . . 2 Highest Loss Streak 10 | . 1 . 2 10 To Critical Strikes . | . . . . . Average Backups 2 | 2 3 5 4 4 Power . | . 1 1 1 . Propulsion . | . . 2 1 1 Utility . | . . . . 1 Weapon 1 | 1 1 2 1 1 Tool/Special . | . . . . . Unused Backups 5 | . . . 1 4 Power . | . . . . . Propulsion 2 | . . . 1 1 Utility 2 | . . . . 2 Weapon 1 | . . . . 1 Tool/Special . | . . . . . Average Slot Usage (%) 69 | . 61 57 79 59 Engine 11 | . 14 14 10 11 Wheel 2 | . 8 . . . Flight 29 | . 14 28 40 23 Storage 10 | . 14 14 11 6 Protection 1 | . . . . 5 Ballistic Gun 8 | . 9 . 10 4 Impact Weapon 5 | . . . 7 8 Peak Build Rating 14 | 5 5 4 9 14 Average Rating 5 | 4 4 4 8 8 On Entrance 4 | . 5 5 4 9 Avg Prop Armor Cover (%) . | . . . . . Naked Turns 17 | . . . . 17 Heaviest Build 24 | 11 13 8 11 24 Greatest Support 26 | 26 26 8 20 25 Greatest Overweight (x) 1 | . 1 . 1 . Average Overweight (x) . | . . . . . Largest Inventory Capacity 8 | 8 8 8 8 8 Average Capacity 7 | 7 8 8 8 7 Most Carried 7 | 5 7 5 6 5 Average Carried 2 | 2 3 5 3 4 Final Capacity 8 | 8 8 8 8 5 Final Carried 5 | 2 4 5 5 5 Class Distribution -------------------- 82% | Mutant 16% | Scavenger-Sprinter Dominant Class ---------------- Mutant | -10/Materials Mutant | -10/Mines Scavenger-Sprinter | -9/Materials Mutant | -8/Materials Resources | -11 -10 -10 -9 -8 ----------- Run | Yrd Mat Min Mat Mat Matter Collected 508 | 235 95 . 178 . Remotely . | . . . . . Salvage Created 465 | . 230 . 225 10 Parts 38 | . 19 . 19 . Haulers Intercepted . | . . . . . Recyclers Shooed . | . . . . . Parts Field Recycled . | . . . . . Retrieved Matter . | . . . . . Parts Self-Destructed . | . . . . . Prevented . | . . . . . Parts Restored . | . . . . . Kills | -11 -10 -10 -9 -8 ------- Run | Yrd Mat Min Mat Mat Combat Hostiles Destroyed 17 | . 6 . 10 1 Guns 16 | . 6 . 10 . Classes Destroyed 4 | . 4 . . . Tunneler 1 | . 1 . . . Watcher 2 | . 1 . 1 . Swarmer 11 | . 3 . 7 1 Grunt 6 | . 3 . 3 . Best Kill Streak 8 | . 8 . 5 1 Combat Bots Only 6 | . 6 . 5 1 Max Kills in Single Turn 1 | . 1 . 1 1 Gunslinging . | . . . . . Exploded . | . . . . . Melee . | . . . . . Uniques/NPCs Destroyed . | . . . . . Combat | -11 -10 -10 -9 -8 -------- Run | Yrd Mat Min Mat Mat Hostile Shots Fired 314 | . 55 . 75 184 Missed 85 | . 13 . 33 39 Hits 229 | . 42 . 42 145 Projectile 229 | . 42 . 42 145 Critical Strikes 3 | . . . . 3 Damage Taken 1967 | . 380 . 414 1173 Core 805 | . 138 . 112 555 Absorbed by Shields . | . . . . . Core Remaining (%) 72 | 100 . 44 72 . Volleys Fired 73 | . 26 . 46 1 Largest 2 | . 2 . 1 1 Hottest 40 | . 40 . 20 20 Shots Fired 78 | . 31 . 46 1 Gun 78 | . 31 . 46 1 Cannon . | . . . . . Launcher . | . . . . . Special . | . . . . . Kinetic 78 | . 31 . 46 1 Thermal . | . . . . . Explosive . | . . . . . Electromagnetic . | . . . . . Robot Hit Streak 7 | . 5 . 7 . Robot Miss Streak 4 | . 2 . 4 1 Penetration Max . | . . . . . Secondary Targets . | . . . . . Shots Hit Robots 49 | . 21 . 27 1 Core Hits 32 | . 14 . 18 . Critical Kills . | . . . . . Critical Parts Destroyed . | . . . . . Critical Strikes . | . . . . . Melee Attacks 31 | . . . 28 3 Impact 31 | . . . 28 3 Slashing . | . . . . . Piercing . | . . . . . Sneak Attacks 1 | . . . 1 . Combat Hostiles . | . . . . . Follow-up Attacks . | . . . . . Damage Inflicted 611 | . 212 . 347 52 Guns 452 | . 191 . 261 . Cannons . | . . . . . Explosions . | . . . . . Melee 138 | . . . 86 52 Ramming 21 | . 21 . . . Kinetic 452 | . 191 . 261 . Thermal . | . . . . . Explosive . | . . . . . Electromagnetic . | . . . . . Impact 138 | . . . 86 52 Slashing . | . . . . . Piercing . | . . . . . Highest Corruption . | . . . . . Average Corruption . | . . . . . Corruption Purged . | . . . . . Corruption Blocked . | . . . . . Overload Shots . | . . . . . Overflow Damage 88 | . . . 56 32 Projectiles . | . . . . . Explosions . | . . . . . Melee 88 | . . . 56 32 Knockbacks . | . . . . . Impact . | . . . . . Kinetic . | . . . . . Secondary . | . . . . . Self-Inflicted Damage 10 | . 10 . . . Shots . | . . . . . Rammed 2 | . 2 . . . Targets Rammed 2 | . 2 . . . Kicked . | . . . . . Crushed . | . . . . . Highest Temperature 372 | . 15 . 11 372 Average Temperature 146 | . 5 . 3 203 Received Heat Transfer 183 | . 66 . 108 9 Effects 11 | . . . . 11 Shutdowns 5 | . . . . 5 Interference 4 | . . . . 4 Matter Decay 2 | . . . . 2 Siege Activations . | . . . . . Martial Activations . | . . . . . Shielding Activations . | . . . . . Robots Disrupted . | . . . . . Combat Hostiles . | . . . . . Robots Corrupted 1 | . . . . 1 Combat Hostiles 1 | . . . . 1 Parts Fried 3 | . . . 2 1 Impact Corruptions 3 | . . . 1 2 Robots Melted . | . . . . . Combat Hostiles . | . . . . . Parts Melted . | . . . . . Heat Transferred . | . . . . . Parts Sabotaged . | . . . . . Parts Stolen . | . . . . . Parts Stripped . | . . . . . Power Chain Reactions . | . . . . . Alert | -11 -10 -10 -9 -8 ------- Run | Yrd Mat Min Mat Mat Maximum Alert Level 2 | . . . 2 1 Low Security (%) 89 | 100 100 100 47 78 Level 1 7 | . . . 34 21 Level 2 2 | . . . 17 . Level 3 . | . . . . . Level 4 . | . . . . . Level 5 . | . . . . . High Security . | . . . . . Max Security . | . . . . . Peak Influence 501 | . 135 . 501 271 Initial 131 | . . . . 131 Average 54 | . 31 . 228 166 Influence Increases 1234 | . 177 . 817 240 Destroy 0b10 Robot/C 340 | . 120 . 200 20 Destroy 0b10 Robot/NC 15 | . 10 . 5 . Destroy Leader 74 | . 32 . 32 10 Successful Hack 7 | . . . 7 . Destroy Structure 18 | . . . 18 . Partial Spotted 165 | . . . 150 15 Lose Combat Pursuer 615 | . 15 . 405 195 Influence Decreases 1083 | . 177 . 504 402 Entered New Map 182 | . . . . 182 Time Decay 349 | . 45 . 194 110 Search Patrol Dispatched 100 | . . . 100 . Lost Part 180 | . 10 . 60 110 Purge Threat 272 | . 122 . 150 . Squads Dispatched 7 | . 2 . 1 4 Investigation 1 | . . . . 1 Extermination . | . . . . . Reinforcement 6 | . 2 . 1 3 Assault . | . . . . . Garrison . | . . . . . Intercept . | . . . . . Searches Triggered 1 | . . . 1 . Construction Impeded . | . . . . . Haulers Reinforced . | . . . . . Active Scanning Responses . | . . . . . Cargo Convoy Interrupts . | . . . . . Stealth | -11 -10 -10 -9 -8 --------- Run | Yrd Mat Min Mat Mat Distress Signals 9 | . 1 . 6 2 Communications Jammed . | . . . . . Distress Signals . | . . . . . Times Spotted 83 | . 10 . 43 30 Peak Tracking Total 15 | . 7 . 10 15 Tactical Retreats 16 | . 1 . 10 5 Traps | -11 -10 -10 -9 -8 ------- Run | Yrd Mat Min Mat Mat Traps Triggered 1 | . . . . 1 Indirectly . | . . . . . Trap Hack Attempts . | . . . . . Triggered . | . . . . . Disarmed . | . . . . . Reprogrammed . | . . . . . Reused . | . . . . . Traps Extracted . | . . . . . Installed . | . . . . . Triggered . | . . . . . Machines | -11 -10 -10 -9 -8 ---------- Run | Yrd Mat Min Mat Mat Machines Disabled . | . . . . . Max in Single Turn . | . . . . . Machines Repaired . | . . . . . Machines Dismantled . | . . . . . Machines Sabotaged . | . . . . . Overloaded Fab Kills . | . . . . . Hacking | -11 -10 -10 -9 -8 --------- Run | Yrd Mat Min Mat Mat Machines Accessed 5 | . 1 . 3 1 Terminals 4 | . 1 . 2 1 Fabricators . | . . . . . Repair Stations . | . . . . . Recycling Units . | . . . . . Scanalyzers 1 | . . . 1 . Garrison Access . | . . . . . Total Hacks 12 | . 2 . 8 2 Successful 4 | . 1 . 3 . Failed 8 | . 1 . 5 2 Catastrophic 1 | . . . 1 . Database Lockouts . | . . . . . Manual 7 | . 2 . 4 1 Terminals 11 | . 2 . 7 2 Fabricators . | . . . . . Repair Stations . | . . . . . Recycling Units . | . . . . . Scanalyzers 1 | . . . 1 . Garrison Access . | . . . . . Terminal Hacks 3 | . 1 . 2 . Branch Access Points 1 | . . . 1 . Unreport Threat 2 | . 1 . 1 . Fabricator Hacks . | . . . . . Repair Station Hacks . | . . . . . Recycling Unit Hacks . | . . . . . Scanalyzer 1 | . . . 1 . Retrieve Study 1 | . . . 1 . Garrison Access Hacks . | . . . . . Unauthorized Hacks . | . . . . . Terminals . | . . . . . Fabricators . | . . . . . Repair Stations . | . . . . . Recycling Units . | . . . . . Scanalyzers . | . . . . . Garrison Access . | . . . . . Data Cores Recovered . | . . . . . Used . | . . . . . Hacking Detections 4 | . 1 . 2 1 Full Trace Events . | . . . . . Feedback Events . | . . . . . Feedback Blocked . | . . . . . Robot Schematics Acquired . | . . . . . Robots Built . | . . . . . Authchips . | . . . . . Time . | . . . . . Total Robot Build Rating . | . . . . . Part Schematics Acquired . | . . . . . Parts Built . | . . . . . Authchips . | . . . . . Time . | . . . . . Total Part Build Rating . | . . . . . Part Studies Acquired 1 | . . . 1 . Parts Repaired . | . . . . . Time . | . . . . . Parts Recycled . | . . . . . Recycled Matter . | . . . . . Retrieved Matter . | . . . . . Retrieved Components . | . . . . . Parts Scanalyzed . | . . . . . Part Schematics Acquired . | . . . . . Parts Damaged . | . . . . . Bothacking | -11 -10 -10 -9 -8 ------------ Run | Yrd Mat Min Mat Mat Used RIF Installer . | . . . . . Robots Hacked . | . . . . . Non-combat . | . . . . . Combat . | . . . . . Robot Hacks Applied . | . . . . . Relay Couplers Released . | . . . . . Fabnet Peak Effective % . | . . . . . Robots Rewired . | . . . . . Allies Hacked . | . . . . . Hacks Repelled . | . . . . . Allies | -11 -10 -10 -9 -8 -------- Run | Yrd Mat Min Mat Mat Total Allies . | . . . . . Largest Group . | . . . . . Highest-Rated Group . | . . . . . Highest-Rated Ally . | . . . . . Total Orders . | . . . . . Ally Attacks . | . . . . . Total Damage . | . . . . . Kills . | . . . . . Allies Corrupted . | . . . . . Allies Melted . | . . . . . Intel | -11 -10 -10 -9 -8 ------- Run | Yrd Mat Min Mat Mat Active Infowar (turns) . | . . . . . Robot Analysis Total . | . . . . . Derelict Logs Recovered . | . . . . . Drone Launches . | . . . . . Drone Recoveries . | . . . . . Exploration | -11 -10 -10 -9 -8 ------------- Run | Yrd Mat Min Mat Mat Turns Passed 2715 | 1783 233 20 455 224 Spaces Moved 1419 | 188 117 51 802 261 Core 12 | 12 . . . . Treads . | . . . . . Legs . | . . . . . Wheels 224 | 176 48 . . . Hover . | . . . . . Flight 1183 | . 69 51 802 261 Fastest Speed 28 | 50 37 37 31 28 Average Speed 41 | 87 72 37 31 28 Slowest Speed 117 | 90 117 37 117 28 Overloaded Moves . | . . . . . Propulsion Burnouts . | . . . . . Robots Hopped 3 | . 1 . 1 1 Potential Cave-ins 2 | . . . 2 . Cave-ins Triggered . | . . . . . Exploration Rate (%) 27 | 13 29 14 54 29 Regions Visited 4 Branch Regions 1 Pre-discovered Areas . | . . . . . Known Exits Taken . | . . . . . Unknown Exits Taken 4 | 1 1 1 1 . Scrap Searched . | . . . . . Spaces Dug 23 | . . . 23 . Terrain Destroyed 23 | . . . 23 . Melee 23 | . . . 23 . Projectile . | . . . . . AOE . | . . . . . Terrain Rammed . | . . . . . Walls Destroyed . | . . . . . Machines Disabled . | . . . . . Actions | -11 -10 -10 -9 -8 --------- Run | Yrd Mat Min Mat Mat Total 3427 | 1806 241 51 923 406 Wait 1841 | 1607 80 . 18 136 Move 1409 | 187 114 50 799 259 Hop 3 | . 1 . 1 1 Pick Up 30 | 7 7 . 13 3 Fast Attach . | . . . . . Attach 26 | 5 6 . 12 3 Detach 2 | . 1 1 . . Swap 3 | . . . 3 . Drop 7 | . 4 . 3 . Fire 73 | . 26 . 46 1 Melee 31 | . . . 28 3 Ram 2 | . 2 . . . Kick . | . . . . . Crush . | . . . . . Escape Stasis . | . . . . . Rewire . | . . . . . Trap . | . . . . . Miscellaneous . | . . . . . Route ------- -11/Scrapyard -10/Materials -10/Mines -9/Materials (discovered 2 exits: *Mat / Min) -8/Materials History --------- Turn | Location | Event 15 | -11/Scrapyard | Discovered new exit (range 16) 1784 | -11/Scrapyard | Entered Materials 1785 | -10/Materials | Build established: Mutant 1836 | -10/Materials | Core integrity fell below 50% 2008 | -10/Materials | Discovered new exit (range 8) 2017 | -10/Materials | Entered Mines 2034 | -10/Mines | Discovered new exit (range 8) 2037 | -10/Mines | Entered Materials 2037 | -9/Materials | Evolved 2 slots: Propulsion x2 2434 | -9/Materials | Identified exit to Mines 2437 | -9/Materials | Search patrols dispatched 2488 | -9/Materials | Discovered new exit (range 13) 2492 | -9/Materials | Entered another Materials area 2492 | -8/Materials | Evolved 2 slots: Power x1, Propulsion x1 2677 | -8/Materials | Core integrity fell below 50% 2686 | -8/Materials | Lost 10 parts (2p5n2u1w) 2704 | -8/Materials | Core integrity fell below 20% 2716 | -8/Materials | Destroyed by S-10 Pest with Light Assault Rifle Last Messages --------------- Power failure, Lgt. Ion Engine shutdown. Overheating: Matter decay (-35). Overheating: System interference. Lgt. Assault Rifle temporarily disabled. Critical hit (Destroy). Power failure, Ion Engine shutdown. Destroyed Flight Unit. S-10 Pest system corrupted by crushing effect. S-10 Pest system terminally corrupted. Lgt. Assault Rifle fried. Flight Unit+ destroyed. Lgt. Assault Rifle destroyed. Flight Unit+ destroyed. Lgt. Ion Engine destroyed. Flight Unit+ destroyed. Hrd. Medium Armor Plating destroyed. Ion Engine destroyed. Sml. Storage Unit destroyed. Flail destroyed. Map ----- +----------------------------------------------------+ | ?????????????????????????????????????????????????? | | ?????????????????????????????????????????????????? | | ?????????????????????????????????????????????????? | | ?????????????????????????????????????????????????? | | ?????????????????????????????????????????????????? | | ?????????????????????????????????????????????????? | | ?????????????????????????????????????????????????? | | ?????????????????????????????????????????????????? | | ?????????????????????????????????????????????????? | | ?????????????????????????????????????????????????? | | ?????????????????????????????????????????????????? | | ?????????????????????????????????????????????????? | | ?????????????????????????????????????????????????? | | ?????????????????????????#########?? ????????????? | | ????????????????????????? ! #? ????????????? | | ????????????????????????# # ?????????????? | | ????????????????????????# ! / ??????????????? | | ????????????????????????# #???????????????? | | ????????????????????????# #???????????????? | | ????????????????????????# #???????????????? | | ????????????????????????# ! ?????????????????? | | ????????????????????????# ???????????????????? | | ????????????????????????# ?????????????????????? | | ????????????????????????#s#??????????????????????? | | ????????????????????????# #??????????????????????? | | ????????????????????????#@#??????????????????????? | | ????????????????????????#%#??????????????????????? | | ????????????????????????#s#??????????????????????? | | ????????????????????????#s#??????????????????????? | | ????????????????????????#g#???????? ???????????? | | ????????????????????????#s#???????+ ???????????? | | ????????????????????????#Y#???????# ???????????? | | ????????????????????????#s#???????# ???????????? | | ????????????????????????#Y#???????# #??????????? | | ????????????????????????#g#???????# #??????????? | | ????????????????????????#s#???????# #??????????? | | ??????????????????????###g###?????# #??????????? | | ??????????????????????# g #?????# #??????????? | | ?????????????????# #### #?????# #??????????? | | ?????????????????# #?????# #??????????? | | ?????????????????###### #?????# #??????##### | | ??????????????????????# #?????# #??????# | | ??????????????????????## ##?????# #??????# | | ???????????????????????# #??????# #?????????"" | | ???????????????????????# #??????# #?????????"" | | ???????????????????????# #??????# #?????????"" | | ????????????##?????????# #??????# #???????? | | ????????????# !??? ??# #??????# #??????? | | ????????????# ?? ?## ######## #??????# | | ????????????# # ############ | +----------------------------------------------------+ Best States ------------- Heat Dissipation 31 Energy Generation 15 Energy Capacity 275 Matter Stores 300 Matter Capacity 300 Sight Range 16 Terrain Scan Density 10 Armor Coverage 225 Evasion (%) 64 Item Schematics ----------------- None Robot Schematics ------------------ None Fabricated ------------ Nothing Repaired ---------- Nothing Studied --------- Flight Unit | -9/Materials | Hacked Alien Tech Used ----------------- None Achievements -------------- None Challenges ------------ None Game ------ Seed ResetTerrainCompactor Manual? 0 Play Time 00:22:56 Cumulative 53.1 hours Start 2026.08.01 @ 21:58:16 End 2026.08.01 @ 22:18:08 Sessions 1 Manual Loads 0 Difficulty Rogue Special Mode None Game No. 92 Rogue 90 Adventurer 0 Explorer 2 Win Type - Total 0 Types 0/0/0/0/0/0/0/0/0/0 Lore% 27 Gallery% 30 Achievement% 22 Wizard Run 0 Options --------- Layout 1 ASCII 0 Keyboard 0 Movement Mouse Keybinds 0 Fullscreen 1 Font 24/Smallcaps Map View 50x35 Zoom Use 0% Tactical HUD 0 Map Filters NONE Filters NONE Steam 1 RUN: af3cf565-74cd-40d9-97ec-fcaaa9d7bcc9